bitfinex-derivatives/quotes_ETHF0:USTF0_20260112
["timestamp","ask_amount","ask_price","bid_price","bid_amount"]
[1768246437317,0.13844634,3117.2,3115.8,3.00776509]
[1768246438117,0.13844634,3117.2,3115.8,0.14333834]
[1768246438313,0.13844634,3117.2,3115.8,3.00776509]
[1768246440716,0.13844634,3117.2,3115.7,2.86442675]
[1768246440925,0.13844634,3117.0,3115.5,2.86442675]
[1768246442114,0.13844634,3117.0,3115.4,2.86442675]
[1768246442621,0.13844634,3116.9,3115.4,2.86442675]
[1768246443420,0.13844634,3116.2,3115.2,0.00398791]
[1768246447424,1.37548281,3116.0,3115.2,0.00398791]
[1768246448613,0.13733082,3115.9,3115.2,0.00398791]
[1768246448816,1.23815199,3115.6,3114.4,1.23815199]
[1768246449825,1.23815199,3115.6,3114.4,1.24220668]
[1768246454929,1.37172953,3115.6,3114.4,0.00405469]
[1768246456241,0.13357754,3115.6,3114.5,1.23815199]
[1768246456829,0.13357754,3115.6,3114.7,1.23815199]
[1768246458530,0.13357754,3115.6,3114.5,1.23815199]
[1768246460333,1.39876199,3115.9,3114.5,1.23815199]
[1768246460936,1.39876199,3115.9,3114.4,0.00405469]
[1768246461236,1.39876199,3115.9,3114.6,1.23815199]
[1768246462040,1.37172953,3115.7,3114.4,0.00405469]
[1768246462233,0.13357754,3115.7,3114.7,1.23815199]
[1768246462735,0.13357754,3115.7,3114.5,1.23815199]
[1768246468339,1.39876199,3115.9,3114.5,1.23815199]
[1768246472840,0.16061,3115.9,3114.9,1.23815199]
[1768246473042,0.16061,3115.9,3114.4,0.1467637]
[1768246473043,0.16061,3115.9,3114.7,1.23815199]
[1768246473239,40.8,3117.8,3115.3,1.23815199]
[1768246473240,0.29415754,3116.5,3115.3,1.23815199]
[1768246473443,1.57099936,3116.4,3115.3,1.23815199]
[1768246473741,0.31899936,3116.3,3115.3,1.23815199]
[1768246473942,0.29415754,3116.5,3115.3,1.23815199]
[1768246474139,0.31899866,3116.4,3115.3,1.23815199]
[1768246474332,0.31899866,3116.3,3115.3,1.23815199]
[1768246474534,1.54615754,3116.5,3115.3,1.23815199]
[1768246474731,0.31905291,3116.4,3115.3,1.23815199]
[1768246474938,0.31905291,3116.3,3115.3,1.23815199]
[1768246475139,1.54615754,3116.5,3115.3,1.23815199]
[1768246475336,0.31904172,3116.4,3115.3,1.23815199]
[1768246475535,0.31904172,3116.3,3115.3,1.23815199]
[1768246475730,1.54615754,3116.5,3115.3,1.23815199]
[1768246475936,0.31904172,3116.4,3115.3,1.23815199]
[1768246476138,0.31904172,3116.3,3115.3,1.23815199]
[1768246476339,1.54615754,3116.5,3115.3,1.23815199]
[1768246476542,0.31902927,3116.4,3115.3,1.23815199]
[1768246476739,1.54615754,3116.5,3115.3,1.23815199]
[1768246476938,0.31902666,3116.4,3115.3,1.23815199]
[1768246477144,1.54615754,3116.5,3115.3,1.23815199]
[1768246477341,0.31899549,3116.4,3115.3,1.23815199]
[1768246477639,1.54615754,3116.5,3115.3,1.23815199]
[1768246477840,0.31899549,3116.4,3115.3,1.23815199]
[1768246478043,1.54615754,3116.5,3115.3,1.23815199]
[1768246478236,0.31899549,3116.4,3115.3,1.23815199]
[1768246478444,1.54615754,3116.5,3115.3,1.23815199]
[1768246478644,0.3189631,3116.4,3115.3,1.23815199]
[1768246478839,1.54615754,3116.5,3115.3,1.23815199]
[1768246479040,0.3189631,3116.4,3115.3,1.23815199]
[1768246479242,1.54615754,3116.5,3115.3,1.23815199]
[1768246479440,0.31892314,3116.4,3115.3,1.23815199]
[1768246479744,1.54615754,3116.5,3115.3,1.23815199]
[1768246479944,0.31892319,3116.4,3115.3,1.23815199]
[1768246480241,1.54615754,3116.5,3115.3,1.23815199]
[1768246480432,0.31889018,3116.4,3115.3,1.23815199]
[1768246480633,1.54615754,3116.5,3115.3,1.23815199]
[1768246480830,0.31889018,3116.4,3115.3,1.23815199]
[1768246481029,1.54615754,3116.5,3115.3,1.23815199]
[1768246481242,0.31889018,3116.4,3115.3,1.23815199]
[1768246481542,1.54615754,3116.5,3115.3,1.23815199]
[1768246481842,0.31886219,3116.4,3115.3,1.23815199]
[1768246482034,1.38233898,3116.4,3115.1,1.23815199]
[1768246483842,0.14418699,3116.4,3115.1,1.23815199]
[1768246484038,0.14418699,3116.4,3115.4,1.23815199]
[1768246484245,1.41258,3116.5,3115.4,1.23815199]
[1768246484841,1.39518699,3116.8,3115.8,1.23815199]
[1768246485044,1.23815199,3116.7,3115.4,1.23815199]
[1768246485344,1.38233898,3116.7,3115.4,1.23815199]
[1768246492848,0.14418699,3116.7,3115.6,1.23815199]
[1768246493241,0.16056,3116.8,3115.6,1.23815199]
[1768246493545,0.14418699,3117.1,3116.0,1.23815199]
[1768246493756,1.251,3117.0,3116.0,1.23815199]
[1768246494048,1.251,3117.0,3115.8,1.23815199]
[1768246498143,1.251,3117.0,3115.6,0.14367927]
[1768246498348,1.38233898,3116.9,3115.6,1.23815199]
[1768246499146,1.38233898,3116.7,3115.2,0.14367927]
[1768246499351,1.38233898,3116.7,3115.3,1.23815199]
[1768246499552,1.38233898,3116.7,3115.5,1.23815199]
[1768246500447,1.23815199,3116.5,3115.2,0.14367927]
[1768246500649,1.38233898,3116.5,3115.2,1.23815199]
[1768246501353,0.14418699,3116.5,3115.4,1.23815199]
[1768246502760,1.41156,3116.8,3115.6,1.23815199]
[1768246503260,0.14418699,3117.3,3116.2,1.23815199]
[1768246503558,0.3185982,3117.2,3116.2,1.23815199]
[1768246503752,1.39518699,3117.3,3116.2,1.23815199]
[1768246503957,0.31858555,3117.2,3116.2,1.23815199]
[1768246504257,1.39518699,3117.3,3116.2,1.23815199]
[1768246504453,0.31857375,3117.2,3116.2,1.23815199]
[1768246504654,2.79387898,3117.3,3116.0,1.23815199]
[1768246504844,1.23815199,3117.1,3115.8,1.23815199]
[1768246507558,1.55572699,3117.3,3115.6,0.14367927]
[1768246507559,0.13788285,3117.2,3115.6,0.14367927]
[1768246510463,0.31863982,3117.1,3115.6,0.14367927]
[1768246510654,0.13788285,3117.2,3115.6,0.14367927]
[1768246510853,0.31863985,3117.1,3115.6,0.14367927]
[1768246511064,0.13788285,3117.2,3115.6,0.14367927]
[1768246511354,0.31863979,3117.1,3115.6,0.14367927]
[1768246511563,0.13788285,3117.0,3115.3,0.16064]
[1768246511958,0.13788285,3116.7,3115.2,2.86442675]
[1768246512164,0.13788285,3116.7,3114.9,6.89604835]
[1768246512463,0.13788285,3116.5,3114.8,3.01095821]
[1768246512763,0.13788285,3116.3,3114.8,0.14653146]
[1768246514159,0.13788285,3116.3,3114.8,3.01095821]
[1768246514464,0.13788285,3116.3,3114.8,0.14653146]
[1768246516062,1.251,3116.4,3115.0,0.1391755]
[1768246519768,1.39644986,3116.4,3115.0,0.1391755]
[1768246520161,1.39644986,3116.4,3114.7,2.86442675]
[1768246520363,0.14544986,3116.3,3114.7,2.86442675]
[1768246520566,0.14544986,3116.3,3114.7,3.00360225]
[1768246521578,0.30603986,3116.3,3114.7,3.00360225]
[1768246522368,0.30603986,3116.3,3114.8,0.1391755]
[1768246522568,0.30603986,3116.3,3114.8,3.00360225]
[1768246523165,0.30603986,3116.3,3114.9,0.1391755]
[1768246527974,0.14544986,3116.2,3114.8,2.86442675]
[1768246528280,0.14544986,3116.0,3114.5,2.86442675]
[1768246528573,0.1606,3116.1,3114.6,0.1391755]
[1768246529174,0.14544986,3116.3,3114.7,1.37633371]
[1768246529376,1.39644986,3116.3,3114.8,0.1391755]
[1768246534180,1.41157,3116.6,3114.8,0.1391755]
[1768246534380,0.16057,3116.6,3114.8,0.1391755]
[1768246535174,0.30129866,3116.6,3114.8,0.1391755]
[1768246536077,0.14072866,3116.5,3114.8,0.1391755]
[1768246537381,0.14072866,3116.5,3114.9,0.14182192]
[1768246541383,0.14072866,3116.5,3114.9,3.00624867]
[1768246547689,0.14072866,3116.5,3115.0,0.14182192]
[1768246548591,0.14072866,3116.5,3115.1,1.23715821]
[1768246554588,1.251,3116.9,3114.9,2.86442675]
[1768246554589,0.14072866,3116.4,3114.9,2.86442675]
[1768246554791,0.14072866,3116.3,3114.8,2.86442675]
[1768246554991,0.14072866,3116.3,3114.7,2.86442675]
[1768246556789,0.14072866,3116.3,3114.8,2.86442675]
[1768246557598,0.14072866,3116.3,3114.7,2.86442675]
[1768246559199,0.14072866,3116.3,3114.8,2.86442675]
[1768246559596,0.14072866,3116.3,3114.8,3.00624867]
[1768246559894,0.16058,3116.4,3114.9,0.14182192]
[1768246560394,0.14072866,3116.7,3115.1,1.37898013]
[1768246560587,0.31915904,3116.6,3115.1,1.37898013]
[1768246560795,0.14072866,3116.7,3115.1,1.37898013]
[1768246560994,0.31915864,3116.6,3115.1,1.37898013]
[1768246561311,0.14072866,3116.7,3115.1,1.37898013]
[1768246561499,0.31915722,3116.6,3115.1,1.37898013]
[1768246561704,0.14072866,3116.7,3115.1,1.37898013]
[1768246561901,0.31915729,3116.6,3115.1,1.37898013]
[1768246562101,0.14072866,3116.7,3115.1,1.37898013]
[1768246562303,0.31915664,3116.6,3115.1,1.37898013]
[1768246562497,0.14072866,3116.7,3115.1,1.37898013]
[1768246562802,0.31915699,3116.6,3115.1,1.37898013]
[1768246563003,0.14072866,3116.7,3115.1,1.37898013]
[1768246563304,0.3191554,3116.6,3115.1,1.37898013]
[1768246563602,0.14072866,3116.7,3115.1,1.37898013]
[1768246563805,0.31915605,3116.6,3115.1,1.37898013]
[1768246564001,0.14072866,3116.7,3115.1,1.37898013]
[1768246564301,0.31915605,3116.6,3115.1,1.37898013]
[1768246564600,0.14072866,3116.7,3115.1,1.37898013]
[1768246564801,0.31915244,3116.6,3115.1,1.37898013]
[1768246565002,0.14072866,3116.7,3115.1,1.37898013]
[1768246565302,0.31915244,3116.6,3115.1,1.37898013]
[1768246565502,0.14072866,3116.7,3115.1,1.37898013]
[1768246565803,0.14072866,3116.7,3114.9,4.14442675]
[1768246565804,0.1353983,3116.5,3114.9,2.86442675]
[1768246565996,0.1353983,3116.2,3114.9,2.86442675]
[1768246566299,0.1353983,3116.2,3114.8,2.86442675]
[1768246566603,0.1353983,3116.2,3114.7,3.00185939]
[1768246567403,1.23805892,3115.8,3114.7,2.86442675]
[1768246567609,1.23805892,3115.8,3114.5,2.86442675]
[1768246568000,1.23805892,3115.8,3114.6,1.23805892]
[1768246568813,1.37345722,3116.0,3114.6,1.23805892]
[1768246571210,0.1353983,3116.0,3114.6,1.23805892]
[1768246571412,0.1353983,3116.0,3114.8,1.23805892]
[1768246572406,0.1353983,3116.0,3114.6,2.86442675]
[1768246572608,0.1353983,3116.0,3114.7,1.23805892]
[1768246574512,1.23805892,3115.9,3114.5,4.10248567]
[1768246575110,1.23805892,3115.9,3114.5,1.23805892]
[1768246576821,1.23805892,3115.5,3114.4,2.86848144]
[1768246577117,1.23805892,3115.3,3114.4,0.00405469]
[1768246577317,1.24201003,3115.3,3114.4,0.00405469]
[1768246577913,1.23805892,3115.1,3114.4,0.00405469]
[1768246578307,1.3806071,3115.1,3113.8,4.10248567]
[1768246579114,0.00395111,3115.3,3114.0,1.23805892]
[1768246579323,0.00395111,3115.3,3114.0,1.24060754]
[1768246579615,1.23805892,3115.2,3114.0,1.24060754]
[1768246579811,1.23805892,3115.0,3114.0,0.00254862]
[1768246580314,1.23805892,3114.6,3114.0,0.00254862]
[1768246580814,1.23805892,3114.6,3113.4,0.13306532]
[1768246581020,1.23805892,3114.6,3113.2,2.86442675]
[1768246581221,1.3806071,3114.8,3113.4,1.23805892]
[1768246581925,1.3806071,3114.8,3113.4,1.24210086]
[1768246584410,1.23805892,3114.4,3113.4,0.00404194]
[1768246584612,1.23805892,3114.2,3113.4,0.00404194]
[1768246584823,1.23805892,3114.4,3113.4,0.00404194]
[1768246586923,1.3806071,3114.4,3113.4,0.00404194]
[1768246591327,0.14254818,3114.9,3113.7,1.23805892]
[1768246591516,1.251,3114.7,3113.7,1.23805892]
[1768246591716,0.14254818,3114.9,3113.7,1.23805892]
[1768246592519,0.14254818,3114.9,3113.5,1.37112424]
[1768246592724,1.23805892,3114.2,3113.4,0.00404194]
[1768246592924,1.23805892,3114.4,3113.4,0.00404194]
[1768246593623,1.23805892,3113.5,3112.5,4.0316216]
[1768246593925,1.3806071,3113.7,3112.4,1.23805892]
[1768246594125,1.3806071,3113.7,3112.1,0.13306532]
[1768246594314,1.3806071,3113.7,3112.4,1.23805892]
[1768246594718,1.3806071,3113.7,3112.4,1.24142652]
[1768246595124,1.3806071,3113.7,3112.4,0.0033676]
[1768246595430,0.14254818,3113.7,3112.5,1.23805892]
[1768246596130,1.3806071,3113.7,3112.5,1.23805892]
[1768246596431,1.23805892,3113.5,3112.4,0.0033676]
[1768246597431,1.3806071,3113.7,3112.4,1.24142652]
[1768246598843,1.3806071,3113.7,3112.4,0.0033676]
[1768246600134,1.23805892,3113.5,3112.4,0.0033676]
[1768246600427,1.3743264,3113.5,3112.4,0.0033676]
[1768246600633,1.23805892,3113.1,3112.4,0.0033676]
[1768246600927,0.00403722,3113.1,3112.4,0.0033676]
[1768246604940,0.13626748,3114.0,3112.6,1.23805892]
[1768246605235,1.3743264,3113.9,3112.6,1.23805892]
[1768246606040,1.3743264,3113.7,3112.4,1.24142652]
[1768246607145,0.00254427,3113.9,3112.8,1.23805892]
[1768246609844,0.00254427,3113.9,3112.6,1.23805892]
[1768246610045,1.23805892,3113.5,3112.4,0.0033676]
[1768246610737,0.13626748,3113.5,3112.4,0.0033676]
[1768246610945,1.3743264,3113.5,3112.4,0.0033676]
[1768246612345,0.13626748,3113.5,3112.4,1.24142652]
[1768246613641,0.13881175,3113.9,3112.8,1.23805892]
[1768246613941,1.251,3113.8,3112.6,1.23805892]
[1768246614146,1.3743264,3113.7,3112.5,1.23805892]
[1768246616040,1.23805892,3113.5,3112.4,0.0033676]
[1768246619052,0.13626748,3113.6,3112.4,0.0033676]
[1768246620547,0.16325427,3113.9,3112.9,1.23805892]
[1768246620846,0.00254427,3113.9,3113.1,1.23805892]
[1768246621048,0.00254427,3113.9,3113.3,1.23805892]
[1768246621249,0.00254427,3113.9,3113.1,1.23805892]
[1768246621750,0.00254427,3113.9,3112.6,0.13521732]
[1768246621945,0.00254427,3113.9,3113.0,1.23805892]
[1768246624045,0.00254427,3113.9,3113.5,1.23805892]
[1768246624356,0.13626748,3114.5,3113.5,1.23805892]
[1768246625244,0.13924752,3114.5,3113.5,1.23805892]
[1768246625440,0.00298004,3114.5,3113.7,1.23805892]
[1768246625648,0.00298004,3114.5,3113.5,1.23805892]
[1768246625850,0.00298004,3114.5,3113.3,1.23805892]
[1768246629453,0.00298004,3114.5,3113.2,0.14356711]
[1768246630654,0.00298004,3114.5,3113.3,1.38266087]
[1768246630956,0.00298004,3114.5,3113.4,0.14356711]
[1768246634065,0.00298004,3114.5,3113.0,1.54713161]
[1768246634260,0.00298004,3114.5,3113.1,0.14727785]
[1768246638561,0.00298004,3114.5,3113.1,0.30802785]
[1768246639859,0.00298004,3114.5,3113.2,0.14727785]
[1768246640360,0.13475729,3115.3,3113.8,1.38637161]
[1768246640556,3.37462,3115.6,3113.9,0.14727785]
[1768246640756,4.76037729,3115.6,3113.9,0.14727785]
[1768246641456,4.76444336,3115.6,3113.9,0.14727785]
[1768246642365,0.13475729,3115.5,3113.9,0.14727785]
[1768246643660,0.16468607,3115.6,3113.9,0.14727785]
[1768246644957,0.13475729,3115.5,3113.9,0.14727785]
[1768246645261,0.13475729,3115.1,3113.2,0.14727785]
[1768246645459,0.13475729,3114.7,3113.2,0.14727785]
[1768246651168,0.13475729,3114.5,3112.8,4.0316216]
[1768246651381,0.13475729,3114.5,3112.5,3.37478]
[1768246651382,0.13475729,3114.3,3112.5,4.1924016]
[1768246652060,0.13475729,3114.3,3112.8,0.14727785]
[1768246652262,4.25768,3114.6,3112.8,0.14727785]
[1768246652462,4.39243729,3114.6,3112.8,0.14727785]
[1768246654272,0.13475729,3114.5,3112.8,0.14727785]
[1768246657078,0.13475729,3114.5,3112.9,0.1451696]
[1768246657282,0.13847352,3114.9,3113.1,0.1451696]
[1768246658182,0.13847352,3114.9,3113.4,1.38426336]
[1768246660882,0.13847352,3114.9,3113.5,0.1451696]
[1768246661574,0.16064,3115.2,3113.5,0.1451696]
[1768246662380,0.29911352,3115.2,3113.5,0.1451696]
[1768246662580,0.13847352,3115.1,3113.5,0.1451696]
[1768246666082,0.13847352,3115.5,3113.8,1.38426336]
[1768246666275,0.13847352,3115.5,3113.9,0.1451696]
[1768246675887,0.13847352,3115.5,3114.2,1.23909376]
[1768246682511,0.13847352,3115.4,3113.5,0.3058996]
[1768246682694,0.13847352,3115.3,3113.5,0.3058996]
[1768246684297,0.13847352,3115.3,3113.6,1.23909376]
[1768246684602,0.13847352,3115.3,3113.8,0.14044651]
[1768246684808,0.13847352,3115.3,3114.0,1.23909376]
[1768246685303,1.25506607,3115.6,3114.0,1.23909376]
[1768246685304,0.00406607,3115.6,3114.0,1.23909376]
[1768246686902,0.14360393,3115.6,3114.0,1.23909376]
[1768246688805,0.14360393,3115.6,3114.0,1.37954027]
[1768246689804,0.14360393,3115.6,3114.1,0.14044651]
[1768246690702,0.14360393,3115.6,3114.1,0.30114651]
[1768246691303,0.14360393,3115.6,3114.6,1.23807118]
[1768246691603,0.14360393,3115.6,3114.6,1.24200506]
[1768246693813,0.00406607,3115.6,3114.6,1.24200506]
[1768246696813,1.23807118,3115.2,3114.6,0.00393388]
[1768246697018,1.23807118,3114.8,3113.7,4.0316216]
[1768246697307,1.23807118,3114.8,3113.5,0.16073]
[1768246697609,1.23807118,3114.8,3113.6,1.23807118]
[1768246698312,1.23807118,3114.8,3113.6,1.24096314]
[1768246699010,1.37511097,3115.0,3113.6,1.24096314]
[1768246699606,1.23807118,3114.8,3113.6,0.00289196]
[1768246701604,0.13703979,3114.7,3113.6,0.00289196]
[1768246703009,0.13703979,3114.7,3113.6,1.24096314]
[1768246704622,0.29767979,3115.2,3114.1,1.23807118]
[1768246704816,0.29767979,3115.2,3113.9,1.23807118]
[1768246705320,1.23807118,3115.1,3113.9,1.23807118]
[1768246705517,0.29767979,3115.2,3113.9,1.23807118]
[1768246705714,0.13703979,3115.2,3113.9,1.23807118]
[1768246705913,1.23807118,3115.5,3114.1,1.23807118]
[1768246706519,0.14110586,3115.6,3114.3,1.23807118]
[1768246706822,1.23807118,3115.5,3114.3,1.23807118]
[1768246707307,0.14110586,3115.6,3114.0,1.37641242]
[1768246707515,0.14110586,3115.6,3114.3,1.23807118]
[1768246708118,0.14110586,3115.6,3114.2,1.23807118]
[1768246708119,1.23807118,3115.5,3114.2,1.23807118]
[1768246710724,0.14110586,3115.6,3114.4,1.23807118]
[1768246714322,0.14110586,3115.6,3114.6,1.23807118]
[1768246715421,0.00406607,3115.6,3114.6,1.23807118]
[1768246715616,0.00406607,3115.6,3114.0,1.39877118]
[1768246715617,0.00406607,3115.6,3114.0,1.23807118]
[1768246715820,0.14709526,3116.0,3114.0,1.23807118]
[1768246715821,0.30767526,3116.4,3115.2,1.23807118]
[1768246716727,0.31086187,3116.4,3115.2,1.23807118]
[1768246718936,1.23807118,3116.3,3115.0,1.23807118]
[1768246720027,0.00318661,3116.4,3115.4,1.23807118]
[1768246726733,0.00318661,3116.4,3115.8,1.23807118]
[1768246726930,0.00318661,3116.4,3115.8,0.00258094]
[1768246730739,0.16056,3116.9,3115.8,0.00258094]
[1768246731743,0.16337412,3116.9,3115.8,0.00258094]
[1768246734149,0.00281412,3116.9,3116.0,1.23807118]
[1768246738652,1.2408853,3116.9,3115.8,0.00258094]
[1768246738850,1.38798056,3116.9,3115.8,0.00258094]
[1768246739152,1.23807118,3116.7,3115.8,0.00258094]
[1768246740158,1.38798056,3116.9,3115.8,0.00258094]
[1768246740663,0.00281412,3116.9,3116.0,1.23807118]
[1768246741354,0.00281412,3116.9,3115.8,1.24065212]
[1768246744064,0.00281412,3116.9,3116.0,1.23807118]
[1768246744366,0.00281412,3116.9,3115.8,1.24065212]
[1768246745057,0.00281412,3116.9,3115.9,1.23807118]
[1768246747267,0.00281412,3116.9,3116.1,1.23807118]
[1768246747469,0.00281412,3116.9,3116.3,1.23807118]
[1768246748063,0.00281412,3116.9,3116.1,1.23807118]
[1768246748373,0.00281412,3116.9,3115.8,1.37392618]
[1768246750068,0.00281412,3116.9,3115.8,1.24065212]
[1768246750273,1.23807118,3116.6,3115.8,0.00258094]
[1768246750468,0.1403229,3116.7,3115.8,0.00258094]
[1768246756081,0.1383687,3116.4,3115.0,4.0316216]
[1768246756376,0.1383687,3116.4,3114.7,4.173424]
[1768246757078,0.1383687,3116.4,3114.8,0.1418024]
[1768246773796,0.1383687,3116.4,3114.8,1.53980789]
[1768246774197,0.1383687,3116.4,3114.9,0.1418024]
[1768246774793,0.13954664,3116.9,3115.3,0.14235468]
[1768246776299,0.00281412,3116.9,3115.3,0.14235468]
[1768246786797,0.00281412,3116.9,3115.6,1.23734549]
[1768246787106,0.00281412,3116.9,3115.7,0.14235468]
[1768246788999,0.00281412,3116.9,3115.4,0.16063]
[1768246789000,0.13954664,3116.9,3115.4,0.16063]
[1768246792205,0.00281412,3116.9,3115.5,0.14235468]
[1768246793003,0.00281412,3116.9,3115.8,1.23734549]
[1768246794106,0.00281412,3116.9,3115.8,1.37970017]
[1768246794409,0.29724252,3117.7,3116.2,1.23734549]
[1768246794707,0.3185398,3117.6,3116.2,1.23734549]
[1768246795000,0.29724252,3117.7,3116.2,1.23734549]
[1768246795206,0.29951834,3117.7,3116.2,1.23734549]
[1768246796502,0.29951834,3117.7,3116.2,1.37970017]
[1768246796805,0.00227582,3117.7,3116.3,0.14235468]
[1768246811419,0.00227582,3117.7,3116.6,1.23651017]
[1768246811920,4.46,3118.3,3116.1,2.86807107]
[1768246811921,0.22943971,3118.5,3117.3,1.23651017]
[1768246812120,1.37143988,3118.3,3117.1,1.23651017]
[1768246812321,1.37143988,3118.3,3116.9,1.23651017]
[1768246813013,1.3746214,3118.3,3116.9,1.23975026]
[1768246813610,1.3746214,3118.3,3116.9,0.00324009]
[1768246813825,1.3746214,3118.3,3117.0,1.23651017]
[1768246819627,0.13811123,3118.3,3117.2,1.23651017]
[1768246821228,0.13811123,3118.3,3117.1,1.23651017]
[1768246821431,0.13811123,3118.3,3117.4,1.23651017]
[1768246822130,0.13811123,3118.3,3117.2,1.23651017]
[1768246823629,1.3746214,3118.3,3117.0,1.23651017]
[1768246825727,0.13811123,3118.3,3117.0,1.23651017]
[1768246829233,1.3746214,3118.3,3117.0,1.23651017]
[1768246830530,0.13811123,3118.3,3117.2,1.23651017]
[1768246830731,0.00318152,3118.3,3117.4,1.23651017]
[1768246830929,0.00318152,3118.3,3117.6,1.23651017]
[1768246831125,0.00318152,3118.3,3117.4,1.23651017]
[1768246833431,0.00318152,3118.3,3117.1,0.13582995]
[1768246833638,0.00318152,3118.3,3117.2,1.23651017]
[1768246834534,1.23651017,3117.9,3116.9,0.00324009]
[1768246835132,1.23651017,3118.1,3116.9,0.00324009]
[1768246835632,0.00318152,3118.3,3117.2,1.23651017]
[1768246836426,1.23651017,3118.2,3117.0,1.23651017]
[1768246836832,1.23651017,3118.0,3116.9,0.14218855]
[1768246837138,1.23651017,3117.6,3116.9,0.00324009]
[1768246839442,1.23651017,3117.0,3115.9,4.0316216]
[1768246839737,1.23651017,3117.0,3115.7,0.13894846]
[1768246839938,1.23651017,3117.0,3115.8,1.23651017]
[1768246840338,1.23651017,3117.0,3115.8,1.24013789]
[1768246840538,1.23651017,3117.0,3115.8,0.00362772]
[1768246841743,1.37259236,3117.2,3115.8,1.24013789]
[1768246844743,0.13608219,3117.1,3115.8,1.24013789]
[1768246845936,0.13608219,3117.1,3116.0,1.23651017]
[1768246846336,0.16053,3117.3,3116.0,1.23651017]
[1768246846531,0.16053,3117.3,3115.8,0.00362772]
[1768246846532,0.16052,3117.7,3116.5,1.23651017]
[1768246846933,1.40952,3117.7,3116.5,1.23651017]
[1768246849745,1.40952,3117.7,3116.1,0.13894846]
[1768246849940,1.53311236,3117.6,3116.3,1.23651017]
[1768246850439,0.13608219,3117.5,3116.3,1.23651017]
[1768246856753,1.23651017,3117.4,3116.1,1.37545863]
[1768246859163,0.13608219,3117.5,3116.5,1.23651017]
[1768246859865,0.16052,3117.6,3116.5,1.23651017]
[1768246863553,0.1605,3118.1,3117.1,1.23651017]
[1768246863959,1.4095,3118.1,3117.1,1.23651017]
[1768246864453,1.249,3118.2,3117.1,1.23651017]
[1768246865467,1.38826371,3118.3,3117.1,1.23651017]
[1768246866268,0.00318152,3118.3,3116.8,0.13894846]
[1768246866458,0.00318152,3118.3,3117.2,1.3801151]
[1768246871371,0.00318152,3118.3,3117.2,0.14360493]
[1768246876373,0.00318152,3118.3,3116.2,4.0316216]
[1768246876374,0.14228572,3118.2,3116.3,0.13880603]
[1768246876567,1.37840644,3118.1,3116.3,0.13880603]
[1768246876770,0.14228572,3118.1,3116.3,0.13880603]
[1768246877572,0.30277572,3118.1,3116.3,0.13880603]
[1768246880264,0.14228572,3118.0,3116.3,0.13880603]
[1768246880872,0.14228572,3118.0,3116.1,0.1606]
[1768246881173,0.14228572,3118.0,3116.2,0.13880603]
[1768246881576,0.16051,3117.8,3116.2,0.13880603]
[1768246882576,0.00318152,3118.3,3117.1,0.13880603]
[1768246884180,0.00318152,3118.3,3117.4,1.23612072]
[1768246885979,0.00318152,3118.3,3117.1,0.13880603]
[1768246891986,0.00318152,3118.3,3116.9,0.16056]
[1768246892489,0.00318152,3118.3,3116.9,0.29936603]
[1768246892786,0.00318152,3118.3,3117.0,0.13880603]
[1768246892988,0.00318152,3118.3,3117.1,1.37492675]
[1768246893586,0.00318152,3118.3,3117.2,0.13880603]
[1768246893882,0.16044,3119.2,3117.9,1.23612072]
[1768246894082,0.31839812,3119.1,3117.6,0.13880603]
[1768246894280,0.30272572,3119.2,3117.6,0.13880603]
[1768246895089,0.13401765,3119.1,3117.6,0.13880603]
[1768246895991,0.13401765,3119.0,3117.5,1.23612072]
[1768246897689,0.13401765,3118.8,3117.3,0.13968333]
[1768246897884,0.13401765,3118.8,3117.0,2.86882201]
[1768246898092,0.13401765,3118.8,3117.0,3.00850534]
[1768246898392,0.29447765,3118.8,3117.0,3.00850534]
[1768246898789,0.13401765,3118.7,3117.0,3.00850534]
[1768246899483,0.13401765,3118.6,3117.0,0.13968333]
[1768246900686,0.29448765,3118.6,3117.0,0.13968333]
[1768246900886,0.13401765,3118.5,3117.0,0.13968333]
[1768246901994,0.13401765,3118.5,3116.8,2.86882201]
[1768246903290,0.13401765,3118.3,3116.7,2.86882201]
[1768246903595,0.13401765,3118.3,3116.7,1.23612072]
[1768246904689,0.13401765,3118.3,3116.6,3.00850534]
[1768246904690,0.29451765,3118.1,3116.6,0.13968333]
[1768246906488,0.13401765,3117.9,3116.5,2.86882201]
[1768246906695,1.37013837,3117.6,3116.2,4.0316216]
[1768246906896,1.37013837,3117.6,3116.0,2.86882201]
[1768246907091,1.37013837,3117.6,3115.9,2.86882201]
[1768246907396,0.13401765,3117.5,3115.9,3.00850534]
[1768246907598,0.13401765,3117.5,3115.9,0.13968333]
[1768246907795,0.13401765,3117.4,3115.9,0.13968333]
[1768246907997,0.13401765,3117.4,3115.8,0.00362772]
[1768246912306,0.13401765,3117.1,3115.8,0.00362772]
[1768246913100,0.13401765,3117.5,3115.9,1.37580405]
[1768246913309,1.38201765,3117.5,3115.9,1.37580405]
[1768246913606,1.38201765,3117.5,3116.0,0.13968333]
[1768246917606,0.13401765,3117.5,3116.0,0.13968333]
[1768246919107,0.13401765,3117.2,3115.8,0.00362772]
[1768246920599,0.16054,3117.3,3115.9,1.23612072]
[1768246923312,0.16054,3117.3,3115.9,1.37580405]
[1768246923901,0.13401765,3117.6,3116.0,0.13968333]
[1768246928112,0.14482746,3117.5,3115.8,0.00362772]
[1768246928908,0.14482746,3117.5,3115.8,0.14933853]
[1768246930511,0.14482746,3117.4,3115.8,0.14933853]
[1768246931412,0.14482746,3117.3,3116.0,1.23705414]
[1768246931814,0.14482746,3117.3,3115.9,1.23705414]
[1768246932202,0.14482746,3117.3,3116.1,1.23705414]
[1768246935521,0.14482746,3117.3,3116.3,1.23705414]
[1768246943220,0.1605,3118.0,3116.9,1.23705414]
[1768246943421,0.31910995,3117.9,3116.9,1.23705414]
[1768246943725,0.31910995,3117.8,3116.7,1.23705414]
[1768246944031,0.31910995,3117.7,3116.9,1.23705414]
[1768246944229,0.14073387,3117.9,3116.7,1.23705414]
[1768246945015,1.23705414,3117.6,3116.0,4.0316216]
[1768246945227,1.23705414,3117.3,3116.0,1.23705414]
[1768246945423,1.37778801,3117.5,3115.9,0.13978095]
[1768246945725,1.23705414,3117.3,3116.0,1.23705414]
[1768246946121,0.14073387,3117.4,3116.0,1.23705414]
[1768246949133,1.23705414,3117.3,3116.0,1.23705414]
[1768246949623,1.37778801,3117.3,3116.0,1.23705414]
[1768246952233,0.14073387,3117.3,3116.2,1.23705414]
[1768246959733,1.39758414,3117.5,3116.2,1.23705414]
[1768246959938,0.16053,3117.5,3116.4,1.23705414]
[1768246960330,0.16053,3117.5,3116.2,0.13725843]
[1768246960331,1.248,3117.7,3116.6,1.23705414]
[1768246960530,1.248,3117.8,3116.6,1.37431257]
[1768246961033,1.248,3117.9,3116.8,1.23705414]
[1768246961340,0.31889253,3117.8,3116.8,1.23705414]
[1768246961637,1.38431415,3117.8,3116.4,1.23705414]
[1768246968350,0.14726001,3117.7,3116.4,1.23705414]
[1768246968754,1.23705414,3117.2,3115.8,4.17250775]
[1768246968954,0.14726001,3117.4,3116.1,1.23705414]
[1768246968955,1.38431415,3117.4,3116.1,1.23705414]